bitfinex/quotes_ETHUSD_20250611
["timestamp","ask_amount","ask_price","bid_price","bid_amount"]
[1749610378245,1.0059,2773.5,2773.4,10.364]
[1749610380954,0.5,2773.6,2773.4,10.364]
[1749610381452,1.05,2773.6,2773.5,1.009]
[1749610382155,0.5,2773.6,2773.5,1.009]
[1749610382454,0.55,2772.9,2772.7,0.51]
[1749610382653,0.55,2772.7,2772.5,9.333]
[1749610382820,0.55,2772.3,2770.0,0.37323501]
[1749610383024,0.55,2772.3,2771.3,6.22020994]
[1749610383325,0.55,2772.3,2771.5,10.0]
[1749610384121,0.55,2772.3,2771.5,10.36694669]
[1749610384338,1.5095,2772.4,2771.5,0.36694669]
[1749610384543,6.22020994,2772.5,2771.6,1.009]
[1749610384544,0.55,2772.1,2771.6,1.009]
[1749610384768,0.55,2772.1,2771.3,6.22020994]
[1749610384926,0.55,2772.1,2771.4,1.009]
[1749610385128,0.04,2771.9,2771.5,9.335]
[1749610387231,0.04,2771.9,2771.6,1.009]
[1749610389964,0.04,2771.9,2771.7,1.009]
[1749610393766,0.04,2771.9,2771.7,11.55708401]
[1749610393968,0.04,2771.9,2771.8,1.009]
[1749610394136,0.04,2771.9,2771.8,11.009]
[1749610395969,0.04,2771.9,2771.8,1.009]
[1749610405959,0.04,2771.9,2771.6,10.0]
[1749610406159,0.04,2771.9,2771.7,1.009]
[1749610407268,0.04,2771.9,2771.8,11.009]
[1749610409810,0.04,2771.9,2771.6,2.9209901]
[1749610410009,1.5437,2771.8,2771.5,9.335]
[1749610410179,1.5437,2771.8,2771.6,1.009]
[1749610412923,0.04,2771.9,2771.6,1.009]
[1749610417393,0.04,2771.9,2771.6,7.23649711]
[1749610418819,0.04,2771.9,2771.6,6.22749711]
[1749610419019,0.04,2771.9,2771.7,1.009]
[1749610421423,0.59,2771.9,2771.8,9.339]
[1749610422735,0.04,2771.9,2771.8,15.56649711]
[1749610424017,0.55,2771.7,2771.3,0.51]
[1749610424234,0.55,2771.7,2771.4,10.348]
[1749610424434,0.55,2771.7,2771.4,9.339]
[1749610424611,0.55,2771.7,2771.5,1.009]
[1749610424818,0.55,2771.7,2771.4,9.339]
[1749610424819,0.55,2771.7,2771.6,1.009]
[1749610427809,0.04,2771.9,2771.6,7.23649711]
[1749610429963,0.04,2771.9,2771.6,1.009]
[1749610431548,0.04,2771.9,2771.7,6.22749711]
[1749610432550,0.04,2771.9,2771.7,6.95114682]
[1749610432743,0.04,2771.9,2771.7,6.22749711]
[1749610433330,0.04,2771.9,2771.8,9.339]
[1749610435884,0.04,2771.9,2771.8,19.339]
[1749610438966,0.04,2771.9,2771.8,0.770711]
[1749610439172,0.04,2771.9,2771.8,9.338]
[1749610439388,0.04,2771.9,2771.8,11.46238938]
[1749610442302,0.04,2771.9,2771.8,17.68988649]
[1749610442503,0.04,2771.9,2771.8,33.9173836]
[1749610442869,0.04,2771.9,2771.8,27.68988649]
[1749610445863,0.04,2771.9,2771.8,28.19988649]
[1749610454722,0.04,2771.9,2771.8,34.4273836]
[1749610456027,0.04,2771.9,2771.8,32.97688649]
[1749610457739,0.04,2771.9,2771.8,39.2043836]
[1749610458037,0.04,2771.9,2771.8,34.4273836]
[1749610458228,0.04,2771.9,2771.8,39.2033836]
[1749610459351,3.34,2772.9,2771.8,69.2033836]
[1749610459526,3.34,2772.9,2772.8,6.22749711]
[1749610459527,0.04,2772.9,2772.8,6.22749711]
[1749610459705,0.04,2772.9,2772.8,7.23549711]
[1749610460797,7.81,2773.9,2772.8,7.23549711]
[1749610460798,0.9233,2773.8,2772.9,10.0]
[1749610461001,0.9233,2773.8,2773.1,6.22749711]
[1749610461193,0.9233,2773.8,2773.6,6.22749711]
[1749610461401,0.9233,2773.8,2773.7,9.336]
[1749610462229,1.4733,2773.8,2773.7,9.336]
[1749610463534,1.4733,2773.8,2773.7,10.344]
[1749610464431,1.4733,2773.8,2773.7,9.336]
[1749610464629,1.4733,2773.8,2773.7,10.344]
[1749610469652,0.9233,2773.8,2773.7,10.344]
[1749610471070,0.9233,2773.8,2773.7,9.336]
[1749610471231,0.9233,2773.8,2773.7,10.343]
[1749610472280,0.9233,2773.8,2773.7,1.007]
[1749610475135,0.9233,2773.8,2773.7,10.34]
[1749610476122,0.04,2773.9,2773.7,16.56749711]
[1749610478466,0.04,2773.9,2773.7,22.36584682]
[1749610489164,0.04,2773.9,2773.7,16.13834971]
[1749610489357,0.04,2773.9,2773.8,10.99649711]
[1749610494156,0.04,2773.9,2773.8,4.769]
[1749610494473,0.04,2773.9,2773.8,10.99649711]
[1749610496282,0.04,2773.9,2773.8,7.23349711]
[1749610497595,0.04,2773.9,2773.8,10.99549711]
[1749610498500,0.04,2773.9,2773.8,20.99549711]
[1749610501590,0.04,2774.9,2774.0,30.0]
[1749610501789,0.04,2774.9,2774.8,6.22749711]
[1749610501948,0.04,2774.9,2774.8,4.765]
[1749610502149,0.04,2774.9,2774.8,10.99249711]
[1749610503176,0.04,2774.9,2774.8,11.34659823]
[1749610504885,0.04,2774.9,2774.8,21.34659823]
[1749610505088,0.04,2774.9,2774.8,30.67659823]
[1749610506304,0.04,2774.9,2774.8,43.27659823]
[1749610508385,0.04,2774.9,2774.8,19.68410112]
[1749610508590,0.04,2774.9,2774.8,20.68810112]
[1749610508804,1.0209,2774.9,2774.7,0.51]
[1749610508964,1.0209,2774.9,2774.8,10.333]
[1749610509164,1.74573971,2774.9,2774.8,9.329]
[1749610509511,1.74573971,2774.9,2774.8,10.333]
[1749610509664,1.0209,2774.9,2774.8,10.333]
[1749610510290,1.0209,2774.9,2774.8,9.329]
[1749610510485,1.0209,2774.9,2774.8,10.333]
[1749610510895,1.5709,2774.9,2774.8,10.333]
[1749610511195,1.0209,2774.9,2774.8,9.329]
[1749610511400,1.0209,2774.9,2774.8,10.333]
[1749610512399,1.0209,2774.9,2774.8,9.329]
[1749610512701,1.0209,2774.9,2774.8,10.333]
[1749610513902,0.04,2774.9,2774.8,10.333]
[1749610517399,0.46919,2774.9,2774.8,9.329]
[1749610517591,0.04,2774.9,2774.8,10.333]
[1749610526512,0.04,2774.9,2774.8,14.09]
[1749610527488,0.04,2774.9,2774.8,9.329]
[1749610527701,0.04,2774.9,2774.8,14.088]
[1749610527898,0.04,2774.9,2774.8,9.329]
[1749610528101,0.04,2774.9,2774.8,14.088]
[1749610528796,0.9604,2774.9,2774.8,9.329]
[1749610529001,0.9604,2774.9,2774.8,10.331]
[1749610529387,0.9604,2774.9,2774.8,1.002]
[1749610529589,0.04,2774.9,2774.8,7.22949711]
[1749610529788,0.04,2774.9,2774.8,7.95244682]
[1749610530606,0.04,2774.9,2774.8,11.70944682]
[1749610532730,0.04,2774.9,2774.8,21.70944682]
[1749610532894,0.04,2774.9,2774.8,22.11737739]
[1749610533603,0.04,2774.9,2774.8,21.70944682]
[1749610535094,0.04,2774.9,2774.8,31.03744682]
[1749610538226,0.04,2774.9,2774.8,20.05094971]
[1749610538395,0.04,2774.9,2774.8,24.80794971]
[1749610542032,0.04,2774.9,2774.8,31.03544682]
[1749610552346,0.04,2774.9,2774.8,61.03544682]
[1749610553845,1.0026,2775.8,2774.8,61.03544682]
[1749610554148,1.0026,2775.8,2775.3,10.0]
[1749610554353,1.0026,2775.8,2775.4,3.753]
[1749610554717,1.0026,2775.8,2775.5,1.002]
[1749610555349,0.9982,2776.4,2775.7,6.22749711]
[1749610555553,0.9982,2776.4,2775.9,6.22749711]
[1749610556456,0.9982,2776.4,2775.8,3.753]
[1749610556756,0.9982,2776.4,2775.8,4.12144225]
[1749610560359,0.9982,2776.4,2775.9,9.326]
[1749610561456,0.9982,2776.4,2775.9,16.27644682]
[1749610562446,0.9982,2776.4,2775.9,10.04894971]
[1749610562625,0.9416,2776.2,2776.0,0.999]
[1749610562823,0.55,2776.1,2775.9,9.326]
[1749610563063,0.55,2776.1,2776.0,0.999]
[1749610569527,1.516,2776.0,2775.9,9.326]
[1749610569733,2.34534971,2776.0,2775.9,10.325]
[1749610569933,2.34534971,2776.0,2775.9,9.326]
[1749610570133,2.34534971,2776.0,2775.9,10.325]
[1749610570565,2.34534971,2776.0,2775.9,9.326]
[1749610570873,2.34534971,2776.0,2775.9,10.325]
[1749610571074,8.57284682,2776.0,2775.9,10.325]
[1749610571443,11.87284682,2776.0,2775.9,10.325]
[1749610571978,11.87284682,2776.0,2775.9,9.326]
[1749610572178,11.87284682,2776.0,2775.9,10.325]
[1749610572404,0.55,2775.7,2774.9,0.51]
[1749610572671,0.966,2775.8,2775.0,19.325]
[1749610572672,0.55,2775.5,2775.0,19.325]
[1749610572869,0.55,2775.5,2775.0,24.074]
[1749610574074,0.55,2775.5,2775.1,0.00365045]
[1749610575848,0.55,2775.5,2775.1,0.36723447]
[1749610581180,0.966,2775.6,2775.2,6.22749711]
[1749610581752,0.966,2775.6,2775.1,0.36358402]
[1749610581948,0.966,2775.6,2775.0,24.073]
[1749610582750,0.966,2775.6,2775.1,6.22749711]
[1749610583766,0.55,2775.9,2775.0,24.43486151]
[1749610583767,0.9362,2775.8,2775.3,6.22749711]
[1749610584256,0.9362,2775.8,2775.3,7.22514682]
[1749610584559,0.9362,2775.8,2775.0,20.68586151]
[1749610584560,0.9362,2775.8,2775.4,7.22649711]
[1749610585153,0.9362,2775.8,2775.5,9.326]
[1749610590091,0.55,2775.7,2775.6,0.997]
[1749610590270,1.4742,2775.7,2775.6,0.997]
[1749610591073,0.9242,2775.7,2775.6,0.997]
[1749610591273,1.4742,2775.7,2775.6,0.997]
[1749610592283,1.4742,2775.7,2775.5,9.326]
[1749610592284,0.55,2775.6,2775.5,9.326]
[1749610592490,0.55,2775.6,2775.5,10.323]
[1749610592491,0.75242,2775.6,2775.5,10.323]
[1749610593099,1.68532,2775.6,2775.5,10.323]
[1749610599274,1.4829,2775.6,2775.5,9.326]
[1749610599478,1.4829,2775.6,2775.5,10.323]
[1749610601917,1.4829,2775.6,2775.5,10.323]
[1749610603901,3.3,2775.8,2775.5,10.323]
[1749610604102,0.55,2775.7,2775.5,10.323]
[1749610605489,1.5316,2775.6,2775.5,9.326]
[1749610605723,1.5316,2775.6,2775.5,10.323]
[1749610608337,3.3,2775.8,2775.5,16.55049711]
[1749610608515,3.3,2775.8,2775.5,10.323]
[1749610609737,3.3,2775.8,2775.5,16.55049711]
[1749610609895,0.55,2776.0,2775.5,16.55049711]
[1749610611391,0.55,2776.0,2775.5,10.323]
[1749610612101,0.5,2775.8,2775.5,10.323]
[1749610614192,0.5,2775.8,2775.5,16.55049711]
[1749610617764,0.5,2775.8,2775.6,0.997]
[1749610619360,0.55,2775.7,2775.5,9.326]
[1749610619561,0.55,2775.7,2775.6,0.997]
[1749610620258,1.464,2775.6,2775.5,9.326]
[1749610620465,1.7154,2775.6,2775.5,10.32]
[1749610627656,5.0154,2775.6,2775.5,10.32]
[1749610629463,3.85,2775.6,2775.5,10.32]
[1749610631339,3.85,2775.6,2775.5,16.54749711]
[1749610631535,3.3,2775.6,2775.5,16.54749711]
[1749610633568,0.55,2775.7,2775.5,16.54749711]
[1749610633757,0.55,2775.7,2775.5,0.99764993]
[1749610635284,0.55,2775.7,2775.6,10.32]
[1749610640194,0.55,2775.7,2775.6,16.54749711]
[1749610640494,0.55,2775.7,2775.6,10.32]
[1749610644575,0.55,2775.7,2775.6,9.326]
[1749610644881,0.75178,2775.7,2775.6,10.32]
[1749610651790,7.92037711,2775.7,2775.6,10.318]
[1749610651992,0.55,2775.5,2774.6,0.86330945]
[1749610652284,0.55,2775.5,2774.7,10.319]
[1749610652285,0.9411,2775.4,2774.7,10.319]
[1749610652490,1.46421,2775.4,2774.8,10.319]
[1749610652863,3.74,2775.6,2775.3,6.22749711]
[1749610652864,0.55,2775.6,2775.3,6.22749711]
[1749610656602,0.55,2775.6,2775.1,6.22749711]
[1749610658579,0.5,2775.4,2775.1,6.22749711]
[1749610660097,0.5,2775.4,2775.2,0.992]
[1749610662109,0.5,2775.4,2775.3,6.22749711]
[1749610664098,0.5,2775.4,2775.2,10.992]
[1749610664286,0.5,2775.4,2775.3,6.22749711]
[1749610664787,0.5,2775.4,2775.3,15.55449711]
[1749610665975,9.18571726,2777.2,2775.3,25.55449711]
[1749610665976,1.4705,2776.1,2775.3,25.55449711]
[1749610666306,0.47705,2776.0,2775.5,6.22749711]
[1749610666514,1.4705,2776.1,2775.5,6.22749711]
[1749610667220,1.4705,2776.1,2775.7,6.22749711]
[1749610667374,0.55,2776.1,2775.7,6.22749711]
[1749610667774,0.55,2776.1,2775.8,0.992]
[1749610668602,0.55,2776.1,2775.9,0.992]
[1749610668810,0.385,2776.0,2775.9,0.992]
[1749610669752,3.3,2776.2,2775.9,0.992]
[1749610669753,3.3,2776.2,2775.9,7.21949711]
[1749610669917,3.3,2776.2,2776.1,6.22749711]
[1749610671795,0.55,2776.6,2776.1,6.22749711]
[1749610672197,0.55,2776.6,2776.1,9.96449711]
[1749610673519,0.9539,2776.7,2776.1,9.96449711]
[1749610673703,0.55,2776.6,2776.1,9.96449711]
[1749610675132,0.55,2776.6,2776.2,9.325]
[1749610676612,0.55,2776.7,2776.5,6.22749711]
[1749610676934,3.3,2776.8,2776.5,6.22749711]
[1749610677306,0.55,2776.7,2776.5,6.22749711]
[1749610678218,3.3,2776.8,2776.5,6.22749711]
[1749610680936,0.55,2776.8,2776.5,6.22749711]
[1749610682214,0.55,2776.8,2776.3,9.96349711]
[1749610682415,0.55,2776.8,2776.4,10.313]
[1749610682812,0.04,2776.9,2776.4,10.313]
[1749610682813,0.04,2776.9,2776.7,6.22749711]
[1749610683620,0.04,2776.9,2776.8,3.735]
[1749610684408,0.04,2776.9,2776.8,14.724]
[1749610684609,0.04,2776.9,2776.8,20.95149711]
[1749610685139,0.04,2776.9,2776.8,30.27449711]
[1749610685306,0.04,2776.9,2776.8,30.27349711]
[1749610690538,0.04,2776.9,2776.8,30.27249711]
[1749610695933,0.04,2776.9,2776.8,30.27149711]
[1749610702242,0.04,2777.9,2777.6,6.22749711]
[1749610702455,0.04,2777.9,2777.7,0.989]
[1749610703130,0.04,2777.9,2776.9,10.0]
[1749610703332,0.965,2777.9,2777.4,10.0]
[1749610703546,0.965,2777.9,2777.6,10.0]
[1749610703949,0.04,2777.9,2777.7,6.22749711]
[1749610704166,0.04,2777.9,2777.8,0.989]
[1749610704877,0.04,2777.9,2777.8,10.989]
[1749610706444,0.04,2777.9,2777.8,10.0]
[1749610706645,0.04,2777.9,2777.8,10.989]
[1749610707545,0.04,2777.9,2777.8,11.34189549]
[1749610709289,0.04,2778.9,2778.0,10.0]
[1749610709444,0.04,2778.9,2778.3,6.22749711]
[1749610709647,0.9765,2778.8,2778.4,10.989]
[1749610710399,0.92878631,2778.8,2778.4,10.989]
[1749610710600,0.04,2778.9,2778.4,17.21649711]
[1749610711077,0.04,2778.9,2778.6,16.22749711]
[1749610711270,0.04,2778.9,2778.7,9.318]
[1749610711676,0.04,2778.9,2778.8,10.0]
[1749610712409,0.04,2778.9,2778.8,16.22749711]
[1749610712789,0.04,2778.9,2778.8,10.0]
[1749610714416,0.04,2778.9,2778.8,10.986]
[1749610715898,0.9584,2778.9,2778.8,10.986]
[1749610716417,0.04,2778.9,2778.8,10.986]
[1749610717510,0.04,2778.9,2778.8,0.986]
[1749610717918,0.9184,2778.8,2778.7,9.318]
[1749610718075,1.4684,2778.8,2778.7,10.304]
[1749610718488,0.55,2778.8,2778.7,10.304]
[1749610718693,2.15014971,2778.8,2778.7,10.304]
[1749610719616,2.15014971,2778.8,2778.7,9.318]
[1749610719784,2.15014971,2778.8,2778.7,10.304]
[1749610720522,1.4684,2778.8,2778.7,9.318]
[1749610720709,1.4684,2778.8,2778.7,10.304]
[1749610721636,1.4684,2778.8,2778.7,9.318]
[1749610721925,0.9318,2778.6,2777.9,3.727]
[1749610722101,0.9639,2778.3,2778.0,10.302]
[1749610722308,0.55,2778.2,2778.0,10.302]
[1749610723122,0.55,2778.2,2778.0,9.316]
[1749610723291,1.5139,2778.2,2778.0,9.316]
[1749610723491,2.61803971,2778.2,2778.1,0.986]
[1749610724097,1.5139,2778.2,2778.1,0.986]
[1749610725211,1.5139,2778.2,2778.0,9.316]
[1749610725412,1.5139,2778.2,2778.1,0.986]
[1749610737922,0.55,2778.3,2778.1,0.986]
[1749610738523,3.3,2778.4,2778.1,0.986]
[1749610739020,0.55,2778.3,2778.1,0.986]
[1749610741080,0.9693,2778.2,2778.0,9.316]
[1749610741238,1.5193,2778.2,2778.1,0.984]
[1749610741957,0.55,2778.2,2778.1,0.984]
[1749610743180,4.2693,2778.4,2778.1,0.984]
[1749610743386,0.9693,2778.6,2778.1,0.984]
[1749610743745,0.55,2778.5,2778.1,0.984]
[1749610743944,0.9693,2778.6,2778.1,0.984]
[1749610744769,0.55,2778.5,2778.0,9.316]
[1749610745081,0.55,2778.5,2778.1,0.984]
[1749610749984,0.55,2778.6,2778.1,0.984]
[1749610750781,0.04,2778.9,2778.1,17.21149711]
[1749610750982,0.04,2778.9,2778.4,10.0]
[1749610751464,0.55,2778.8,2778.4,10.0]
[1749610757404,9.52749711,2779.4,2778.4,10.8336]
[1749610757601,1.23422942,2779.3,2778.4,10.8336]
[1749610757903,1.23422942,2779.3,2778.5,3.723]
[1749610758404,1.22208942,2779.3,2778.5,3.723]
[1749610759177,0.55,2779.2,2778.5,3.723]
[1749610760199,1.4983,2779.2,2778.5,3.723]
[1749610761780,1.4983,2779.2,2778.6,0.984]
[1749610762018,1.99407545,2779.2,2778.6,0.984]
[1749610766016,1.99407545,2779.2,2778.7,9.316]
[1749610768716,0.55,2779.1,2778.7,9.316]
[1749610769596,0.55,2779.1,2778.8,10.3]
[1749610772117,0.9483,2779.2,2778.8,10.3]
[1749610772118,1.0339,2779.9,2779.0,6.22749711]
[1749610772500,1.5439,2779.6,2778.8,9.316]
[1749610772841,0.55,2779.4,2778.9,0.982]
[1749610773535,0.55,2779.2,2779.0,0.982]
[1749610775410,0.55,2779.2,2778.4,16.22749711]
[1749610775411,0.9845,2778.9,2777.8,1.52984016]
[1749610775626,0.9845,2778.9,2777.9,16.52449711]
[1749610776038,2.13269971,2778.9,2777.9,16.52449711]
[1749610776903,2.13269971,2778.9,2777.9,20.24449711]
[1749610779338,0.9845,2778.8,2777.9,20.24449711]
[1749610779645,0.55,2778.7,2777.9,20.24449711]
[1749610779828,0.55,2778.7,2777.9,16.52449711]
[1749610780019,0.55,2778.7,2777.9,20.24449711]
[1749610780408,0.55,2778.5,2777.9,9.315]
[1749610780744,0.55,2778.5,2778.0,0.982]
[1749610782441,0.55,2778.5,2777.8,6.59078259]
[1749610782644,0.55,2778.5,2778.1,0.982]
[1749610784528,0.55,2778.5,2778.2,6.22749711]
[1749610785137,0.55,2778.5,2778.3,9.317]
[1749610785946,0.55,2778.7,2778.3,9.317]
[1749610788152,0.9399,2778.8,2778.3,9.317]
[1749610788450,0.55,2778.7,2778.3,9.317]
[1749610789850,7.22109711,2778.6,2778.3,9.317]
[1749610790019,1.4874,2778.4,2778.3,9.317]
[1749610790214,1.4874,2778.4,2778.3,10.299]
[1749610792518,1.4874,2778.4,2778.3,0.982]
[1749610795224,1.4874,2778.4,2778.3,10.299]
[1749610795927,3.719,2778.8,2778.3,10.299]
[1749610795928,1.473,2778.7,2778.3,10.299]
[1749610796121,0.55,2778.5,2778.3,10.299]
[1749610800902,0.55,2778.6,2778.3,9.317]
[1749610801186,0.55,2778.4,2778.3,9.317]
[1749610801358,0.55,2778.4,2778.3,10.299]
[1749610802985,0.55,2778.5,2778.3,9.317]
[1749610803142,8.42714682,2778.4,2778.3,10.297]
[1749610803976,2.19964971,2778.4,2778.3,10.297]
[1749610804585,8.42714682,2778.4,2778.3,10.297]
[1749610804758,12.14514682,2778.4,2778.3,10.297]
[1749610804963,12.14514682,2778.4,2778.3,0.98]
[1749610804964,11.17324682,2778.4,2778.3,0.98]
[1749610805170,11.53324682,2778.4,2778.3,0.98]
[1749610805372,1.22774971,2778.4,2778.3,0.98]
[1749610805576,2.22094971,2778.4,2778.3,0.98]
[1749610805795,1.5432,2778.3,2777.6,9.318]
[1749610805950,0.55,2777.9,2777.6,9.318]
[1749610806146,6.77749711,2777.9,2777.7,0.98]
[1749610806893,0.55,2777.9,2777.7,0.98]
[1749610808282,4.7112,2778.0,2777.7,0.98]
[1749610808477,0.55,2777.9,2777.7,0.98]
[1749610810463,0.9508,2778.2,2777.7,0.98]
[1749610810864,0.55,2778.1,2777.7,0.98]
[1749610811869,0.55,2778.2,2777.7,0.98]
[1749610813796,0.9938,2778.6,2778.1,6.22749711]
[1749610814090,0.9938,2778.6,2777.9,6.39179711]
[1749610814299,0.55,2778.5,2777.9,6.39179711]
[1749610814892,0.55,2778.5,2777.9,0.1643]
[1749610815527,0.55,2778.7,2778.1,6.22749711]
[1749610815815,0.36,2778.8,2777.8,3.718]
[1749610815816,0.36,2779.0,2778.3,6.22749711]
[1749610816120,0.36,2779.0,2778.2,0.1643]
[1749610816121,0.36,2779.0,2778.5,6.22749711]
[1749610816289,0.36,2779.0,2778.6,0.98]
[1749610816494,0.9489,2779.1,2778.6,0.98]
[1749610817181,0.55,2779.0,2778.6,0.98]
[1749610818287,0.55,2779.3,2778.7,0.1643]
[1749610818503,0.7554,2779.3,2778.7,0.1643]
[1749610819429,0.7554,2779.3,2778.7,6.39179711]
[1749610819604,0.954,2779.4,2778.7,6.39179711]
[1749610819920,0.9514,2779.6,2778.9,6.22749711]
[1749610820081,0.55,2779.5,2778.9,6.22749711]
[1749610820724,0.961,2779.8,2779.3,6.22749711]
[1749610820889,0.961,2779.8,2779.4,10.298]
[1749610821090,0.961,2779.8,2779.5,0.98]
[1749610821295,0.72284971,2779.7,2779.5,0.98]
[1749610821490,0.55,2779.6,2779.5,0.98]
[1749610822918,0.961,2779.8,2779.5,0.98]
[1749610822919,0.55,2779.7,2779.5,0.98]
[1749610827324,0.55,2779.8,2779.5,0.98]
[1749610828526,0.55,2779.8,2779.5,1.1443]
[1749610829125,0.55,2779.8,2779.6,0.98]
[1749610830343,0.04,2779.9,2779.6,0.98]
[1749610831525,0.55,2779.8,2778.9,6.73749711]
[1749610831746,6.77749711,2779.8,2779.0,4.694]
[1749610831943,1.32848971,2779.8,2778.9,6.73749711]
[1749610832117,1.32848971,2779.8,2779.0,0.98]
[1749610832931,1.32848971,2779.8,2779.1,6.22749711]
[1749610833132,0.55,2779.8,2779.1,6.22749711]
[1749610833338,0.55,2779.8,2779.2,0.978]
[1749610834321,1.0074,2779.9,2779.3,6.22749711]
[1749610834521,0.04,2779.9,2779.5,6.22749711]
[1749610835253,0.04,2779.9,2779.6,9.314]
[1749610837119,0.04,2779.9,2779.7,0.978]
[1749610838643,0.55,2779.8,2779.6,9.314]
[1749610838960,1.5307,2779.7,2779.6,9.314]
[1749610839144,2.31051971,2779.7,2779.6,10.292]
[1749610840856,2.31051971,2779.7,2779.6,9.314]
[1749610841080,2.31051971,2779.7,2779.6,10.292]
[1749610841493,1.5307,2779.7,2779.6,9.314]
[1749610841642,1.5307,2779.7,2779.6,10.292]
[1749610842771,1.5307,2779.7,2779.6,9.314]
[1749610842976,1.5307,2779.7,2779.6,10.292]
[1749610848088,0.55,2779.7,2779.6,10.292]
[1749610852969,1.32774971,2779.7,2779.6,10.292]
[1749610861236,7.55524682,2779.7,2779.6,9.314]
[1749610861540,8.54204682,2779.7,2779.6,9.314]
[1749610861695,8.54204682,2779.7,2779.6,10.292]
[1749610862095,12.25304682,2779.7,2779.6,10.292]
[1749610862290,8.54204682,2779.7,2779.6,10.292]
[1749610862592,12.25304682,2779.7,2779.6,10.292]
[1749610863516,12.25304682,2779.7,2779.6,10.29]
[1749610865292,12.25304682,2779.7,2779.6,9.314]
[1749610865605,12.25304682,2779.7,2779.6,10.29]
[1749610867897,2.31454971,2779.7,2779.6,10.29]
[1749610868103,12.25204682,2779.7,2779.6,10.29]
[1749610868445,6.02454971,2779.7,2779.6,10.29]
[1749610870012,12.25204682,2779.7,2779.6,10.29]
[1749610871057,6.02454971,2779.7,2779.6,10.29]
[1749610871259,12.25204682,2779.7,2779.6,10.29]
[1749610871478,12.25204682,2779.7,2778.5,6.22749711]
[1749610871479,0.55,2779.6,2778.5,6.22749711]
[1749610871659,0.55,2779.6,2778.6,0.977]
[1749610872021,0.55,2779.4,2778.6,0.977]
[1749610872516,4.26,2779.4,2778.6,4.687]
[1749610873222,0.55,2779.3,2778.6,4.687]
[1749610873559,4.26,2779.4,2778.6,4.687]
[1749610875129,4.26,2779.6,2778.7,15.54149711]
[1749610875331,0.55,2779.6,2778.8,3.71]
[1749610875559,4.26,2779.7,2778.9,6.22749711]
[1749610875763,4.26,2779.7,2779.0,3.71]
[1749610876668,4.26,2779.7,2778.7,15.54149711]
[1749610876669,0.55,2779.3,2779.1,0.977]
[1749610876975,0.55,2779.3,2779.2,0.977]
[1749610881174,0.55,2779.3,2778.7,9.314]
[1749610881353,0.55,2779.3,2779.2,0.977]
[1749610884147,6.77749711,2779.6,2779.2,10.291]
[1749610884347,8.01336982,2779.6,2779.2,10.291]
[1749610885178,1.0154,2780.0,2779.2,16.51849711]
[1749610885371,3.749,2779.9,2779.2,16.51849711]
[1749610885676,0.55,2779.8,2779.2,16.51849711]
[1749610886962,0.04,2779.9,2779.2,16.51849711]
[1749610887296,0.04,2779.9,2779.4,6.22749711]
[1749610888289,0.04,2779.9,2779.6,6.22749711]
[1749610888645,0.04,2779.9,2779.4,6.22749711]
[1749610891778,0.04,2779.9,2779.4,10.0]
[1749610893710,0.04,2779.9,2779.4,16.22749711]
[1749610894469,0.04,2779.9,2779.5,0.0109]
[1749610897590,0.04,2779.9,2779.6,3.707]
[1749610900179,0.04,2779.9,2779.7,10.0]
[1749610901310,0.04,2779.9,2779.4,0.51]
[1749610901311,0.55,2779.8,2779.4,0.51]
[1749610901511,0.55,2779.8,2779.5,0.974]
[1749610901717,0.55,2779.6,2779.2,9.314]
[1749610901880,1.5391,2779.6,2779.3,0.974]
[1749610905106,1.011,2779.5,2779.2,9.314]
[1749610905343,1.011,2779.5,2779.3,0.974]
[1749610909498,1.5469,2779.7,2779.3,0.974]
[1749610910633,1.5469,2779.7,2779.4,0.974]
[1749610913130,0.55,2779.6,2779.4,0.974]
[1749610915230,0.55,2779.6,2779.5,9.313]
[1749610915525,0.9969,2779.7,2779.5,9.313]
[1749610920660,8.48193682,2779.6,2779.5,9.313]
[1749610920824,2.25443971,2779.6,2779.5,10.287]
[1749610923910,8.48193682,2779.6,2779.5,10.287]
[1749610926542,8.44416092,2779.6,2779.5,10.287]
[1749610929838,12.14816092,2779.6,2779.5,10.287]
[1749610930581,12.14816092,2779.6,2779.5,10.287]
[1749610930739,5.92066381,2779.6,2779.5,10.287]
[1749610930940,4.686,2779.6,2779.5,10.287]
[1749610931141,3.704,2779.7,2779.5,10.287]
[1749610931775,0.55,2779.6,2779.5,9.313]
[1749610932089,6.77749711,2779.6,2779.5,10.286]
[1749610932455,7.75589711,2779.6,2779.5,10.286]
[1749610932665,8.90188682,2779.6,2779.5,10.286]